fUST/lending_fUST_20250723
["ID","MTS","AMOUNT","RATE_DAILY","PERIOD"]
[374286385,1753265463080,-460.0,0.00020547,2]
[374286387,1753265463090,-452.06956132,0.00020547,2]
[374286389,1753265463100,-502.17,0.00020547,2]
[374286391,1753265463110,-460.0,0.00020547,2]
[374286393,1753265463119,-460.0,0.00020547,2]
[374286395,1753265463129,-460.0,0.00020547,2]
[374286397,1753265463138,-460.0,0.00020547,2]
[374286399,1753265463147,-460.0,0.00020547,2]
[374286401,1753265463160,-460.0,0.00020547,2]
[374286403,1753265463169,-416.20668507,0.00020547,2]
[374286405,1753265463179,-240.40580293,0.00020547,2]
[374286407,1753265463189,-460.0,0.00020547,2]
[374286409,1753265463199,-466.41807707,0.00020547,2]
[374286411,1753265463209,-460.0,0.00020547,2]
[374286413,1753265463219,-460.0,0.00020547,2]
[374286415,1753265463228,-460.0,0.00020547,2]
[374286417,1753265463238,-460.0,0.00020547,2]
[374286419,1753265463247,-460.0,0.00020547,2]
[374286421,1753265463257,-460.0,0.00020547,2]
[374286423,1753265463267,-460.0,0.00020547,2]
[374286425,1753265463276,-460.0,0.00020547,2]
[374286426,1753265463286,-460.0,0.00020547,2]
[374286427,1753265463296,-460.0,0.00020547,2]
[374286428,1753265463309,-460.0,0.00020547,2]
[374286429,1753265463319,-590.43,0.00020547,2]
[374286430,1753265463329,-460.0,0.00020547,2]
[374286431,1753265463344,-460.0,0.00020547,2]
[374286432,1753265463354,-460.0,0.00020547,2]
[374286433,1753265463364,-460.0,0.00020547,2]
[374286434,1753265463374,-460.0,0.00020547,2]
[374286435,1753265463384,-460.0,0.00020547,2]
[374286436,1753265463395,-460.0,0.00020547,2]
[374286437,1753265463405,-460.0,0.00020547,2]
[374286438,1753265463417,-545.58,0.00020547,2]
[374286439,1753265463426,-151.0,0.00020547,2]
[374286440,1753265463436,-1371.54,0.00020547,2]
[374286441,1753265463447,-460.0,0.00020547,2]
[374286442,1753265463457,-467.85262096,0.00020547,2]
[374286444,1753265463467,-460.0,0.00020547,2]
[374286446,1753265463477,-460.0,0.00020547,2]
[374286448,1753265463487,-460.0,0.00020547,2]
[374286449,1753265463496,-460.0,0.00020547,2]
[374286451,1753265463506,-460.0,0.00020547,2]
[374286453,1753265463516,-460.0,0.00020547,2]
[374286455,1753265463526,-495.25,0.00020547,2]
[374286457,1753265463536,-1752.06,0.00020547,2]
[374286459,1753265463546,-460.0,0.00020547,2]
[374286461,1753265463558,-2780.13,0.00020547,2]
[374286463,1753265463567,-492.84,0.00020547,2]
[374286465,1753265463577,-485.84,0.00020547,2]
[374286467,1753265463586,-460.0,0.00020547,2]
[374286469,1753265463596,-460.0,0.00020547,2]
[374286471,1753265463606,-460.0,0.00020547,2]
[374286473,1753265463616,-460.0,0.00020547,2]
[374286475,1753265463625,-460.0,0.00020547,2]
[374286476,1753265463635,-1705.5,0.00020547,2]
[374286479,1753265463645,-460.0,0.00020547,2]
[374286481,1753265463655,-460.0,0.00020547,2]
[374286483,1753265463665,-460.0,0.00020547,2]
[374286485,1753265463675,-979.8,0.00020547,2]
[374286487,1753265463685,-460.0,0.00020547,2]
[374286489,1753265463695,-460.0,0.00020547,2]
[374286491,1753265463704,-493.35,0.00020547,2]
[374286493,1753265463715,-460.0,0.00020547,2]
[374286495,1753265463725,-505.38852183,0.00020547,2]
[374286497,1753265463734,-3732.57,0.00020547,2]
[374286499,1753265463745,-460.0,0.00020547,2]
[374286501,1753265463754,-460.0,0.00020547,2]
[374286503,1753265463764,-460.0,0.00020547,2]
[374286505,1753265463774,-538.86,0.00020547,2]
[374286507,1753265463783,-5749.02,0.00020547,2]
[374286509,1753265463793,-460.0,0.00020547,2]
[374286511,1753265463803,-460.0,0.00020547,2]
[374286513,1753265463813,-460.0,0.00020547,2]
[374286515,1753265463822,-460.0,0.00020547,2]
[374286517,1753265463832,-460.0,0.00020547,2]
[374286519,1753265463842,-460.0,0.00020547,2]
[374286521,1753265463852,-460.0,0.00020547,2]
[374286522,1753265463862,-713.04,0.00020547,2]
[374286523,1753265463872,-460.0,0.00020547,2]
[374286524,1753265463882,-460.0,0.00020547,2]
[374286525,1753265463893,-163.82589383,0.00020547,2]
[374286526,1753265463903,-460.0,0.00020547,2]
[374286527,1753265463913,-1054.45,0.00020547,2]
[374286529,1753265463923,-498.33,0.00020547,2]
[374286531,1753265463933,-460.0,0.00020547,2]
[374286533,1753265463943,-460.0,0.00020547,2]
[374286535,1753265463953,-460.0,0.00020547,2]
[374286537,1753265463962,-460.0,0.00020547,2]
[374286539,1753265463972,-460.0,0.00020547,2]
[374286541,1753265463982,-460.0,0.00020547,2]
[374286543,1753265463992,-486.02,0.00020547,2]
[374286545,1753265464002,-463.97000016,0.00020547,2]
[374286547,1753265464011,-460.0,0.00020547,2]
[374286549,1753265464021,-460.0,0.00020547,2]
[374286551,1753265464031,-2109.27,0.00020547,2]
[374286553,1753265464041,-460.0,0.00020547,2]
[374286555,1753265464051,-1050.54,0.00020547,2]
[374286557,1753265464061,-460.0,0.00020547,2]
[374286559,1753265464071,-460.0,0.00020547,2]
[374286561,1753265464081,-460.0,0.00020547,2]
[374286575,1753265464202,-460.0,0.00020547,2]
[374286577,1753265464213,-460.0,0.00020547,2]
[374286579,1753265464222,-460.0,0.00020547,2]
[374286581,1753265464232,-460.0,0.00020547,2]
[374286583,1753265464242,-460.0,0.00020547,2]
[374286585,1753265464252,-460.0,0.00020547,2]
[374286587,1753265464262,-460.0,0.00020547,2]
[374286589,1753265464272,-546.88,0.00020547,2]
[374286591,1753265464284,-460.0,0.00020547,2]
[374286593,1753265464294,-460.0,0.00020547,2]
[374286595,1753265464306,-460.0,0.00020547,2]
[374286597,1753265464316,-460.0,0.00020547,2]
[374286599,1753265464326,-460.0,0.00020547,2]
[374286601,1753265464340,-460.0,0.00020547,2]
[374286603,1753265464349,-460.0,0.00020547,2]
[374286605,1753265464359,-884.23,0.00020547,2]
[374286607,1753265464368,-460.0,0.00020547,2]
[374286609,1753265464379,-481.4243932,0.00020601,4]
[374286611,1753265464389,-420.0,0.00020685,2]
[374286613,1753265464399,-1789.09,0.0002069,2]
[374286615,1753265464408,-4290.92441391,0.0002069,2]
[374286617,1753265464418,-599.288,0.00020709,2]
[374286619,1753265464428,-178.684,0.00020709,2]
[374286621,1753265464437,-500.0,0.00020721,2]
[374286623,1753265464447,-151.0,0.000208,3]
[374286625,1753265464456,-2074.97723689,0.00020816,2]
[374286627,1753265464466,-2000.0,0.00020816,2]
[374286629,1753265464475,-2000.0,0.00020816,2]
[374286631,1753265464485,-2000.0,0.00020816,2]
[374286633,1753265464495,-2000.0,0.00020816,2]
[374286635,1753265464504,-460.0,0.00020821,2]
[374286637,1753265464514,-460.0,0.00020821,2]
[374286639,1753265464524,-460.0,0.00020821,2]
[374286641,1753265464533,-460.0,0.00020821,2]
[374286643,1753265464542,-460.0,0.00020821,2]
[374286645,1753265464552,-1396.32,0.00020821,2]
[374286648,1753265464563,-1130.89,0.00020821,2]
[374286650,1753265464572,-460.0,0.00020821,2]
[374286652,1753265464581,-460.0,0.00020821,2]
[374286653,1753265464591,-460.0,0.00020821,2]
[374286655,1753265464601,-460.0,0.00020821,2]
[374286658,1753265464610,-460.0,0.00020821,2]
[374286660,1753265464619,-460.0,0.00020821,2]
[374286662,1753265464629,-460.0,0.00020821,2]
[374286664,1753265464638,-460.0,0.00020821,2]
[374286666,1753265464647,-460.0,0.00020821,2]
[374286667,1753265464657,-460.0,0.00020821,2]
[374286669,1753265464666,-460.0,0.00020821,2]
[374286671,1753265464676,-806.5,0.00020821,2]
[374286674,1753265464685,-460.0,0.00020821,2]
[374286675,1753265464694,-460.0,0.00020821,2]
[374286677,1753265464704,-1052.43,0.00020821,2]
[374286679,1753265464713,-460.0,0.00020821,2]
[374286682,1753265464723,-460.0,0.00020821,2]
[374286684,1753265464732,-460.0,0.00020821,2]
[374286686,1753265464742,-460.0,0.00020821,2]
[374286688,1753265464752,-460.0,0.00020821,2]
[374286690,1753265464761,-460.0,0.00020821,2]
[374286692,1753265464771,-2210.59,0.00020821,2]
[374286694,1753265464781,-569.61269116,0.00020821,2]
[374286696,1753265464790,-460.0,0.00020821,2]
[374286698,1753265464800,-460.0,0.00020821,2]
[374286700,1753265464811,-460.0,0.00020821,2]
[374286702,1753265464826,-465.86880002,0.00020821,2]
[374286704,1753265464836,-460.0,0.00020821,2]
[374286706,1753265464845,-460.0,0.00020821,2]
[374286708,1753265464855,-460.0,0.00020821,2]
[374286711,1753265464866,-460.0,0.00020821,2]
[374286713,1753265464876,-460.0,0.00020821,2]
[374286715,1753265464885,-460.0,0.00020821,2]
[374286717,1753265464895,-750.25,0.00020821,2]
[374286719,1753265464905,-460.0,0.00020821,2]
[374286721,1753265464915,-460.0,0.00020821,2]
[374286723,1753265464924,-460.0,0.00020821,2]
[374286725,1753265464934,-460.0,0.00020821,2]
[374286727,1753265464943,-460.0,0.00020821,2]
[374286729,1753265464953,-460.0,0.00020821,2]
[374286731,1753265464962,-197.80781386,0.00020821,2]
[374286733,1753265464972,-460.0,0.00020821,2]
[374286735,1753265464982,-460.0,0.00020821,2]
[374286737,1753265464992,-460.0,0.00020821,2]
[374286739,1753265465001,-460.0,0.00020821,2]
[374286741,1753265465011,-502.17,0.00020821,2]
[374286743,1753265465020,-460.0,0.00020821,2]
[374286745,1753265465030,-460.0,0.00020821,2]
[374286748,1753265465040,-460.0,0.00020821,2]
[374286750,1753265465050,-460.0,0.00020821,2]
[374286752,1753265465060,-460.0,0.00020821,2]
[374286754,1753265465070,-460.0,0.00020821,2]
[374286756,1753265465079,-460.0,0.00020821,2]
[374286758,1753265465089,-460.0,0.00020821,2]
[374286760,1753265465099,-460.0,0.00020821,2]
[374286762,1753265465109,-460.0,0.00020821,2]
[374286764,1753265465119,-460.0,0.00020821,2]
[374286766,1753265465128,-460.0,0.00020821,2]
[374286768,1753265465138,-460.0,0.00020821,2]
[374286770,1753265465148,-463.80601612,0.00020821,2]
[374286772,1753265465157,-460.0,0.00020821,2]
[374286774,1753265465166,-460.0,0.00020821,2]
[374286776,1753265465176,-460.0,0.00020821,2]
[374286778,1753265465185,-464.22433652,0.00020821,2]
[374286780,1753265465195,-590.43,0.00020821,2]
[374286782,1753265465204,-350.72948266,0.00020821,2]
[374286784,1753265465214,-460.0,0.00020821,2]
[374286786,1753265465223,-460.0,0.00020821,2]
[374286788,1753265465233,-460.0,0.00020821,2]
[374286790,1753265465241,-460.0,0.00020821,2]
[374286792,1753265465251,-460.0,0.00020821,2]
[374286794,1753265465262,-545.58,0.00020821,2]
[374286796,1753265465271,-1371.54,0.00020821,2]
[374286798,1753265465280,-460.0,0.00020821,2]
[374286800,1753265465291,-460.0,0.00020821,2]
[374286802,1753265465300,-460.0,0.00020821,2]
[374286804,1753265465311,-460.0,0.00020821,2]
[374286805,1753265465320,-460.0,0.00020821,2]
[374286807,1753265465329,-460.0,0.00020821,2]
[374286809,1753265465343,-495.25,0.00020821,2]
[374286811,1753265465352,-1752.06,0.00020821,2]
[374286813,1753265465361,-2780.13,0.00020821,2]
[374286815,1753265465371,-492.84,0.00020821,2]
[374286817,1753265465381,-485.84,0.00020821,2]
[374286819,1753265465391,-460.0,0.00020821,2]
[374286821,1753265465400,-460.0,0.00020821,2]
[374286823,1753265465410,-460.0,0.00020821,2]
[374286825,1753265465420,-460.0,0.00020821,2]
[374286827,1753265465431,-466.75911472,0.00020821,2]
[374286829,1753265465440,-1705.5,0.00020821,2]
[374286831,1753265465450,-460.0,0.00020821,2]
[374286833,1753265465460,-460.0,0.00020821,2]
[374286835,1753265465470,-460.0,0.00020821,2]
[374286837,1753265465480,-979.8,0.00020821,2]
[374286839,1753265465490,-460.0,0.00020821,2]
[374286841,1753265465499,-493.35,0.00020821,2]
[374286842,1753265465508,-460.0,0.00020821,2]
[374286844,1753265465517,-3732.57,0.00020821,2]
[374286846,1753265465527,-460.0,0.00020821,2]
[374286848,1753265465537,-460.0,0.00020821,2]
[374286850,1753265465547,-460.0,0.00020821,2]
[374286852,1753265465558,-538.86,0.00020821,2]
[374286854,1753265465567,-5749.02,0.00020821,2]
[374286856,1753265465577,-460.0,0.00020821,2]
[374286858,1753265465586,-460.0,0.00020821,2]
[374286860,1753265465596,-460.0,0.00020821,2]
[374286862,1753265465605,-460.0,0.00020821,2]
[374286864,1753265465615,-460.0,0.00020821,2]
[374286866,1753265465625,-460.0,0.00020821,2]
[374286868,1753265465635,-295.110964,0.00020821,2]
[374286870,1753265465646,-460.0,0.00020821,2]
[374286872,1753265465655,-713.04,0.00020821,2]
[374286874,1753265465666,-460.0,0.00020821,2]
[374286876,1753265465676,-460.0,0.00020821,2]
[374286878,1753265465686,-295.110964,0.00020821,2]
[374286880,1753265465696,-460.0,0.00020821,2]
[374286882,1753265465706,-1054.45,0.00020821,2]
[374286884,1753265465716,-498.33,0.00020821,2]
[374286886,1753265465726,-460.0,0.00020821,2]
[374286888,1753265465735,-460.0,0.00020821,2]
[374286889,1753265465744,-460.0,0.00020821,2]
[374286891,1753265465754,-460.0,0.00020821,2]
[374286893,1753265465764,-460.0,0.00020821,2]
[374286895,1753265465773,-460.0,0.00020821,2]
[374286898,1753265465790,-460.0,0.00020821,2]
[374286900,1753265465799,-2109.27,0.00020821,2]
[374286902,1753265465811,-460.0,0.00020821,2]
[374286904,1753265465821,-1050.54,0.00020821,2]
[374286906,1753265465830,-460.0,0.00020821,2]
[374286917,1753265465928,-460.0,0.00020821,2]
[374286919,1753265465949,-460.0,0.00020821,2]
[374286921,1753265465959,-460.0,0.00020821,2]
[374286923,1753265465968,-460.0,0.00020821,2]
[374286925,1753265465978,-460.0,0.00020821,2]
[374286927,1753265465989,-460.0,0.00020821,2]
[374286929,1753265465999,-460.0,0.00020821,2]
[374286931,1753265466008,-460.0,0.00020821,2]
[374286933,1753265466018,-546.88,0.00020821,2]
[374286935,1753265466027,-460.0,0.00020821,2]
[374286937,1753265466037,-460.0,0.00020821,2]
[374286939,1753265466046,-460.0,0.00020821,2]
[374286940,1753265466056,-460.0,0.00020821,2]
[374286942,1753265466066,-460.0,0.00020821,2]
[374286944,1753265466076,-460.0,0.00020821,2]
[374286946,1753265466085,-884.23,0.00020821,2]
[374286948,1753265466094,-460.0,0.00020821,2]
[374286950,1753265466104,-526.15909479,0.00020949,2]
[374286952,1753265466114,-160.0,0.00020949,2]
[374286954,1753265466124,-231.11583447,0.00020949,2]
[374286956,1753265466133,-214.67886746,0.00020949,2]
[374286958,1753265466143,-160.0,0.00020949,2]
[374286960,1753265466153,-215.84326551,0.00020949,2]
[374286962,1753265466163,-12622.36869388,0.00020949,2]
[374286964,1753265466173,-160.0,0.00020949,2]
[374286966,1753265466183,-160.0,0.00020949,2]
[374286968,1753265466193,-840.06856235,0.00020949,2]
[374286970,1753265466202,-160.0,0.00020957,2]
[374286972,1753265466211,-160.0,0.00020957,2]
[374286974,1753265466221,-160.0,0.00020957,2]
[374286976,1753265466232,-476.696448,0.00020957,2]
[374286978,1753265466241,-260.0,0.0002098,2]
[374286980,1753265466250,-500.0,0.00020995,2]
[374286981,1753265466259,-500.0,0.00021008,2]
[374286983,1753265466269,-500.0,0.00021008,2]
[374286985,1753265466279,-550.14382085,0.00021008,2]
[374286987,1753265466288,-500.0,0.00021008,2]
[374286989,1753265466297,-151.0,0.00021068,2]
[374286991,1753265466309,-161.214973,0.00021068,2]
[374286993,1753265466318,-151.0,0.00021068,2]
[374286995,1753265466328,-151.0,0.00021068,2]
[374286997,1753265466339,-1000.9714425,0.00021068,2]
[374286999,1753265466348,-1500.0,0.00021068,2]
[374287000,1753265466359,-1000.0,0.00021068,2]
[374287002,1753265466368,-1003.04396683,0.00021068,2]
[374287004,1753265466378,-1500.0,0.00021068,2]
[374287006,1753265466388,-1018.52113841,0.00021068,2]
[374287008,1753265466397,-500.0,0.00021068,2]
[374287010,1753265466407,-1026.56501023,0.00021068,2]
[374287012,1753265466417,-596.95692524,0.00021068,2]
[374287014,1753265466426,-1500.0,0.00021068,2]
[374287016,1753265466436,-500.0,0.00021068,2]
[374287018,1753265466448,-505.39491167,0.00021068,2]
[374287020,1753265466458,-1500.0,0.00021068,2]
[374287021,1753265466467,-629.31904846,0.00021068,2]
[374287023,1753265466477,-1501.00505703,0.00021068,2]
[374287025,1753265466486,-1500.0,0.00021068,2]
[374287027,1753265466495,-1503.73116406,0.00021068,2]
[374287029,1753265466504,-1500.0,0.00021068,2]
[374287030,1753265466517,-502.478894,0.00021068,2]
[374287032,1753265466526,-500.0,0.00021068,2]
[374287034,1753265466535,-1500.0,0.00021068,2]
[374287036,1753265466544,-460.0,0.00021095,2]
[374287038,1753265466553,-158.27,0.00021095,2]
[374287039,1753265466563,-460.0,0.00021095,2]
[374287041,1753265466572,-460.0,0.00021095,2]
[374287043,1753265466581,-460.0,0.00021095,2]
[374287045,1753265466591,-1396.32,0.00021095,2]
[374287047,1753265466600,-1130.89,0.00021095,2]
[374287048,1753265466609,-460.0,0.00021095,2]
[374287050,1753265466618,-460.0,0.00021095,2]
[374287052,1753265466628,-460.0,0.00021095,2]
[374287054,1753265466638,-460.0,0.00021095,2]
[374287056,1753265466647,-460.0,0.00021095,2]
[374287057,1753265466656,-538.53226701,0.00021095,2]
[374287059,1753265466665,-460.0,0.00021095,2]
[374287061,1753265466676,-460.0,0.00021095,2]
[374287063,1753265466685,-460.0,0.00021095,2]
[374287065,1753265466694,-460.0,0.00021095,2]
[374287067,1753265466704,-806.5,0.00021095,2]
[374287068,1753265466713,-460.0,0.00021095,2]
[374287070,1753265466722,-460.0,0.00021095,2]
[374287072,1753265466732,-460.0,0.00021095,2]
[374287074,1753265466742,-1052.43,0.00021095,2]
[374287076,1753265466751,-460.0,0.00021095,2]
[374287077,1753265466760,-460.0,0.00021095,2]
[374287079,1753265466770,-460.0,0.00021095,2]
[374287081,1753265466779,-460.0,0.00021095,2]
[374287083,1753265466790,-460.0,0.00021095,2]
[374287085,1753265466804,-2210.59,0.00021095,2]
[374287087,1753265466815,-460.0,0.00021095,2]
[374287089,1753265466824,-166.16714709,0.00021095,2]
[374287090,1753265466834,-460.0,0.00021095,2]
[374287092,1753265466843,-460.0,0.00021095,2]
[374287094,1753265466853,-460.0,0.00021095,2]
[374287096,1753265466863,-279.20976402,0.00021095,2]
[374287097,1753265466872,-750.25,0.00021095,2]
[374287099,1753265466881,-460.0,0.00021095,2]
[374287101,1753265466891,-460.0,0.00021095,2]
[374287103,1753265466901,-472.37713478,0.00021095,2]
[374287105,1753265466910,-460.0,0.00021095,2]
[374287107,1753265466919,-460.0,0.00021095,2]
[374287108,1753265466927,-564.6643063,0.00021095,2]
[374287110,1753265466937,-460.0,0.00021095,2]
[374287112,1753265466946,-460.0,0.00021095,2]
[374287114,1753265466956,-460.0,0.00021095,2]
[374287116,1753265466965,-502.17,0.00021095,2]
[374287117,1753265466974,-460.0,0.00021095,2]
[374287119,1753265466984,-460.0,0.00021095,2]
[374287121,1753265466993,-460.0,0.00021095,2]
[374287123,1753265467002,-460.0,0.00021095,2]
[374287124,1753265467011,-460.0,0.00021095,2]
[374287126,1753265467020,-460.0,0.00021095,2]
[374287128,1753265467030,-460.0,0.00021095,2]
[374287130,1753265467039,-460.0,0.00021095,2]
[374287132,1753265467048,-460.0,0.00021095,2]
[374287134,1753265467060,-460.0,0.00021095,2]
[374287136,1753265467069,-460.0,0.00021095,2]
[374287138,1753265467078,-460.0,0.00021095,2]
[374287139,1753265467087,-460.0,0.00021095,2]
[374287141,1753265467096,-460.0,0.00021095,2]
[374287143,1753265467105,-460.0,0.00021095,2]
[374287145,1753265467114,-590.43,0.00021095,2]
[374287147,1753265467123,-460.0,0.00021095,2]
[374287148,1753265467132,-460.0,0.00021095,2]
[374287150,1753265467141,-460.0,0.00021095,2]
[374287152,1753265467151,-460.0,0.00021095,2]
[374287154,1753265467160,-545.58,0.00021095,2]
[374287156,1753265467169,-1371.54,0.00021095,2]
[374287157,1753265467178,-460.0,0.00021095,2]
[374287159,1753265467188,-460.0,0.00021095,2]
[374287161,1753265467197,-460.0,0.00021095,2]
[374287163,1753265467207,-460.0,0.00021095,2]
[374287165,1753265467216,-463.37390298,0.00021095,2]
[374287167,1753265467225,-460.0,0.00021095,2]
[374287169,1753265467234,-495.25,0.00021095,2]
[374287170,1753265467243,-1752.06,0.00021095,2]
[374287172,1753265467252,-2780.13,0.00021095,2]
[374287174,1753265467264,-492.84,0.00021095,2]
[374287176,1753265467273,-485.84,0.00021095,2]
[374287178,1753265467282,-498.32,0.00021095,2]
[374287180,1753265467291,-460.0,0.00021095,2]
[374287182,1753265467300,-460.0,0.00021095,2]
[374287183,1753265467310,-460.0,0.00021095,2]
[374287185,1753265467320,-1705.5,0.00021095,2]
[374287187,1753265467329,-460.0,0.00021095,2]
[374287189,1753265467343,-460.0,0.00021095,2]
[374287191,1753265467353,-460.0,0.00021095,2]
[374287193,1753265467362,-979.8,0.00021095,2]
[374287195,1753265467371,-460.0,0.00021095,2]
[374287197,1753265467381,-493.35,0.00021095,2]
[374287199,1753265467390,-460.0,0.00021095,2]
[374287200,1753265467399,-460.0,0.00021095,2]
[374287202,1753265467409,-3732.57,0.00021095,2]
[374287212,1753265467501,-460.0,0.00021095,2]
[374287214,1753265467511,-538.86,0.00021095,2]
[374287215,1753265467520,-5749.02,0.00021095,2]
[374287217,1753265467530,-460.0,0.00021095,2]
[374287219,1753265467539,-460.0,0.00021095,2]
[374287221,1753265467552,-460.0,0.00021095,2]
[374287223,1753265467566,-460.0,0.00021095,2]
[374287225,1753265467576,-460.0,0.00021095,2]
[374287227,1753265467585,-460.0,0.00021095,2]
[374287229,1753265467595,-460.0,0.00021095,2]
[374287231,1753265467605,-713.04,0.00021095,2]
[374287232,1753265467614,-460.0,0.00021095,2]
[374287234,1753265467625,-460.0,0.00021095,2]
[374287236,1753265467635,-460.0,0.00021095,2]
[374287238,1753265467645,-1054.45,0.00021095,2]
[374287240,1753265467656,-498.33,0.00021095,2]
[374287242,1753265467667,-537.82634601,0.00021095,2]
[374287244,1753265467677,-460.0,0.00021095,2]
[374287246,1753265467687,-460.0,0.00021095,2]
[374287248,1753265467697,-460.0,0.00021095,2]
[374287249,1753265467707,-460.0,0.00021095,2]
[374287251,1753265467717,-460.0,0.00021095,2]
[374287253,1753265467727,-2109.27,0.00021095,2]
[374287255,1753265467737,-1050.54,0.00021095,2]
[374287257,1753265467747,-460.0,0.00021095,2]
[374287259,1753265467757,-460.0,0.00021095,2]
[374287261,1753265467767,-460.0,0.00021095,2]
[374287263,1753265467777,-460.0,0.00021095,2]
[374287265,1753265467787,-460.0,0.00021095,2]
[374287267,1753265467797,-460.0,0.00021095,2]
[374287268,1753265467810,-460.0,0.00021095,2]
[374287270,1753265467819,-460.0,0.00021095,2]
[374287272,1753265467829,-546.88,0.00021095,2]
[374287274,1753265467839,-175.19404414,0.00021095,2]
[374287276,1753265467849,-460.0,0.00021095,2]
[374287278,1753265467859,-460.0,0.00021095,2]
[374287280,1753265467869,-460.0,0.00021095,2]
[374287282,1753265467879,-460.0,0.00021095,2]
[374287284,1753265467889,-460.0,0.00021095,2]
[374287285,1753265467898,-884.23,0.00021095,2]
[374287287,1753265467908,-460.0,0.00021095,2]
[374287289,1753265467917,-151.0,0.000212,3]
[374287291,1753265467927,-4290.92441391,0.0002125,2]
[374287293,1753265467937,-500.0,0.00021269,2]
[374287295,1753265467946,-2000.0,0.00021364,2]
[374287297,1753265467956,-500.0,0.00021364,2]
[374287299,1753265467965,-2095.20899026,0.00021364,2]
[374287301,1753265467975,-2500.0,0.00021364,2]
[374287302,1753265467984,-460.0,0.00021369,2]
[374287304,1753265467993,-460.0,0.00021369,2]
[374287306,1753265468003,-460.0,0.00021369,2]
[374287308,1753265468013,-460.0,0.00021369,2]
[374287310,1753265468024,-1396.32,0.00021369,2]
[374287312,1753265468035,-1130.89,0.00021369,2]
[374287314,1753265468045,-460.0,0.00021369,2]
[374287316,1753265468055,-460.0,0.00021369,2]
[374287318,1753265468071,-460.0,0.00021369,2]
[374287319,1753265468082,-573.91245876,0.00021369,2]
[374287321,1753265468094,-460.0,0.00021369,2]
[374287323,1753265468105,-460.0,0.00021369,2]
[374287325,1753265468117,-460.0,0.00021369,2]
[374287327,1753265468127,-460.0,0.00021369,2]
[374287329,1753265468138,-460.0,0.00021369,2]
[374287331,1753265468148,-806.5,0.00021369,2]
[374287333,1753265468158,-460.0,0.00021369,2]
[374287335,1753265468168,-460.0,0.00021369,2]
[374287336,1753265468177,-1052.43,0.00021369,2]
[374287338,1753265468187,-460.0,0.00021369,2]
[374287340,1753265468198,-460.0,0.00021369,2]
[374287342,1753265468207,-460.0,0.00021369,2]
[374287344,1753265468218,-460.0,0.00021369,2]
[374287346,1753265468227,-2210.59,0.00021369,2]
[374287348,1753265468237,-460.0,0.00021369,2]
[374287350,1753265468247,-474.64235238,0.00021369,2]
[374287352,1753265468257,-297.82594406,0.00021369,2]
[374287353,1753265468266,-750.25,0.00021369,2]
[374287355,1753265468276,-460.0,0.00021369,2]
[374287357,1753265468285,-460.0,0.00021369,2]
[374287359,1753265468295,-460.0,0.00021369,2]